[Event "NJSK 2021 Jeugd B"]
[Site "Almelo, Netherlands"]
[Date "2021.08.01"]
[Round "1.8"]
[White "Groen, Jari"]
[Black "Shadrin, Mitia"]
[Result "0-1"]
[TimeControl "90min/40moves + 30min + 30sec/move"]
[WhiteElo "1423"]
[BlackElo "1698"]

1. e4 {[%clk 01:30:58]} {[%emt 00:00:01]} c5 {[%clk 01:30:58]} {[%emt
00:00:03]} 2. Nf3 {[%clk 01:31:21]} {[%emt 00:00:07]} g6 {[%clk 01:31:23]}
{[%emt 00:00:04]} 3. d4 {[%clk 01:31:45]} {[%emt 00:00:06]} cxd4 {[%clk
01:31:49]} {[%emt 00:00:04]} 4. Nxd4 {[%clk 01:32:08]} {[%emt 00:00:08]} Nc6
{[%clk 01:31:44]} {[%emt 00:00:35]} 5. c4 {[%clk 01:31:02]} {[%emt 00:01:36]}
Nf6 {[%clk 01:31:34]} {[%emt 00:00:40]} 6. Nc3 {[%clk 01:30:47]} {[%emt
00:00:44]} Nxd4 {[%clk 01:31:54]} {[%emt 00:00:10]} 7. Qxd4 {[%clk 01:29:52]}
{[%emt 00:01:26]} d6 {[%clk 01:32:16]} {[%emt 00:00:07]} 8. Be2 {[%clk
01:27:03]} {[%emt 00:03:19]} Bg7 {[%clk 01:32:36]} {[%emt 00:00:10]} 9. Be3
{[%clk 01:22:06]} {[%emt 00:05:27]} O-O {[%clk 01:32:29]} {[%emt 00:00:37]} 10.
Qd2 {[%clk 01:21:28]} {[%emt 00:01:08]} Qa5 {[%clk 01:23:16]} {[%emt 00:09:43]}
11. O-O {[%clk 01:10:50]} {[%emt 00:11:09]} Be6 {[%emt 00:00:50]} 12. f3 Rfc8
13. Nd5 Qxd2 14. Bxd2 Nxd5 15. exd5 Bd7 {[%clk 01:22:55]} 16. Kh1 b5 {[%clk
01:22:55]} 17. Rac1 bxc4 {[%clk 01:22:55]} 18. Rxc4 Rxc4 {[%clk 01:22:55]} 19.
Bxc4 Bxb2 {[%clk 01:22:55]} 20. Rb1 Bf6 {[%clk 01:22:55]} 21. Rb7 Bc8 {[%clk
01:22:55]} 22. Rb3 Bd4 {[%clk 01:22:55]} 23. Be3 Bxe3 {[%clk 01:22:55]} 24.
Rxe3 Rb8 {[%clk 01:22:55]} 25. Kg1 Kf8 {[%clk 01:22:55]} 26. Kf2 Rb2+ {[%clk
01:22:55]} 27. Re2 Rxe2+ {[%clk 01:22:55]} 28. Kxe2 Ke8 {[%clk 01:22:55]} 29.
Kd3 Kd8 {[%clk 01:22:55]} 30. Kd4 Kc7 {[%clk 01:22:55]} 31. f4 Kb6 {[%clk
01:22:55]} 32. Bb3 Bd7 {[%clk 01:22:55]} 33. h3 Ka5 {[%clk 01:22:55]} 34. a3
Ba4 {[%clk 01:22:55]} 35. Bc4 Bb5 {[%clk 01:22:55]} 36. Bb3 Bf1 {[%clk
01:22:55]} 37. h4 Bxg2 {[%clk 01:22:55]} 38. Ke3 Kb5 {[%clk 01:22:55]} 39. Kd4
Bf1 {[%clk 01:22:55]} 40. Bc2 Bc4 {[%clk 01:22:55]} 41. f5 Ba2 {[%clk
01:22:55]} 42. fxg6 hxg6 {[%clk 01:22:55]} 43. Bd1 Bb1 {[%clk 01:22:55]} 44.
Ke3 Kc5 {[%clk 01:22:55]} 45. Bb3 a5 {[%clk 01:22:55]} 46. Kf4 f6 {[%clk
01:22:55]} 47. Ke3 Bf5 {[%clk 01:22:55]} 48. Kf4 Bd3 {[%clk 01:22:55]} 49. Bd1
Kxd5 {[%clk 01:22:55]} 50. h5 gxh5 {[%clk 01:22:55]} 51. Bxh5 Kd4 {[%clk
01:22:55]} 52. Bd1 e5 {[%clk 01:22:55]} 53. Kf3 f5 {[%clk 01:22:55]} 54. Kf2 e4
{[%clk 01:22:55]} 0-1

[Event "NJSK 2021 Jeugd B"]
[Site "Almelo, Netherlands"]
[Date "2021.08.02"]
[Round "2.1"]
[White "Achuthan, Dylan"]
[Black "Pham, Khoi"]
[Result "0-1"]
[TimeControl "90min/40moves + 30min + 30sec/move"]
[WhiteElo "1888"]
[BlackElo "2128"]

1. b3 {[%clk 01:30:57]} {[%emt 00:00:02]} c5 {[%clk 01:29:08]} {[%emt
00:01:52]} 2. Bb2 {[%clk 01:31:18]} {[%emt 00:00:10]} Nc6 {[%clk 01:29:27]}
{[%emt 00:00:10]} 3. Nf3 {[%clk 01:31:19]} {[%emt 00:00:28]} Nf6 {[%clk
01:28:44]} {[%emt 00:01:14]} 4. e3 {[%clk 01:31:28]} {[%emt 00:00:21]} d5
{[%clk 01:28:06]} {[%emt 00:01:08]} 5. Bb5 {[%clk 01:31:52]} {[%emt 00:00:06]}
Bg4 {[%clk 01:26:52]} {[%emt 00:01:44]} 6. Bxc6+ {[%clk 01:31:06]} {[%emt
00:01:17]} bxc6 {[%clk 01:26:56]} {[%emt 00:00:25]} 7. h3 {[%clk 01:31:08]}
{[%emt 00:00:28]} Bh5 {[%clk 01:26:44]} {[%emt 00:00:41]} 8. d3 {[%clk
01:19:58]} {[%emt 00:11:40]} e6 {[%clk 01:23:54]} {[%emt 00:03:21]} 9. Nbd2
{[%clk 01:03:14]} {[%emt 00:17:14]} Be7 {[%clk 01:13:10]} {[%emt 00:11:14]} 10.
g4 {[%clk 00:52:38]} {[%emt 00:11:06]} Bg6 {[%clk 01:13:31]} {[%emt 00:00:09]}
11. Ne5 {[%clk 00:50:24]} {[%emt 00:02:44]} Qc7 {[%clk 01:04:10]} {[%emt
00:09:52]} 12. Ndf3 {[%clk 00:40:32]} {[%emt 00:10:20]} O-O {[%clk 00:55:55]}
{[%emt 00:08:46]} 13. h4 {[%clk 00:33:59]} {[%emt 00:07:04]} h5 {[%clk
00:54:48]} {[%emt 00:01:36]} 14. g5 {[%clk 00:23:13]} {[%emt 00:11:16]} Ng4
{[%clk 00:47:52]} {[%emt 00:07:26]} 15. Nxg4 {[%clk 00:06:33]} {[%emt
00:17:10]} hxg4 {[%clk 00:48:16]} {[%emt 00:00:05]} 16. Nd2 {[%clk 00:06:13]}
{[%emt 00:00:51]} g3 {[%clk 00:43:41]} {[%emt 00:05:04]} 17. Qe2 {[%clk
00:03:59]} {[%emt 00:02:45]} gxf2+ {[%clk 00:39:50]} {[%emt 00:04:21]} 18. Qxf2
{[%clk 00:04:10]} {[%emt 00:00:19]} Bh5 {[%clk 00:39:54]} {[%emt 00:00:25]} 19.
Nf3 {[%clk 00:01:00]} {[%emt 00:03:41]} f6 {[%clk 00:38:08]} {[%emt 00:02:16]}
20. g6 {[%clk 00:01:29]} {[%emt 00:00:01]} Qa5+ {[%clk 00:36:09]} {[%emt
00:02:29]} 21. Qd2 {[%clk 00:01:42]} {[%emt 00:00:16]} Qxd2+ {[%clk 00:35:24]}
{[%emt 00:01:16]} 22. Nxd2 {[%clk 00:02:11]} {[%emt 00:00:02]} Bxg6 {[%clk
00:35:33]} {[%emt 00:00:20]} 23. O-O-O {[%clk 00:02:10]} {[%emt 00:00:31]} Bh5
{[%clk 00:35:47]} {[%emt 00:00:15]} 24. Rdg1 {[%clk 00:01:55]} {[%emt
00:00:46]} Kf7 {[%clk 00:35:27]} {[%emt 00:00:50]} 25. Nf1 {[%clk 00:00:46]}
{[%emt 00:01:39]} Rh8 {[%clk 00:34:01]} {[%emt 00:01:56]} 26. Kd2 {[%clk
00:00:39]} {[%emt 00:00:37]} Bd6 {[%clk 00:32:17]} {[%emt 00:02:14]} 27. Ng3
{[%clk 00:00:33]} {[%emt 00:00:36]} Bf3 {[%clk 00:32:24]} {[%emt 00:00:22]} 28.
Rh3 {[%clk 00:01:02]} g5 {[%clk 00:32:01]} {[%emt 00:00:54]} 29. Nf5 {[%clk
00:00:42]} {[%emt 00:00:50]} exf5 {[%clk 00:30:46]} {[%emt 00:01:45]} 30. Rxf3
{[%clk 00:01:03]} {[%emt 00:00:09]} Kg6 {[%clk 00:30:32]} {[%emt 00:00:44]} 31.
hxg5 {[%clk 00:00:37]} {[%emt 00:00:55]} Rh2+ {[%clk 00:30:57]} {[%emt
00:00:05]} 32. Kd1 {[%clk 00:01:05]} {[%emt 00:00:03]} fxg5 {[%clk 00:31:22]}
{[%emt 00:00:06]} 33. e4 {[%clk 00:01:09]} {[%emt 00:00:26]} Rf8 {[%clk
00:29:00]} {[%emt 00:02:52]} 34. e5 {[%clk 00:00:46]} {[%emt 00:00:52]} Be7
{[%clk 00:28:07]} {[%emt 00:01:22]} 35. Bc1 {[%clk 00:00:31]} {[%emt 00:00:46]}
Kh5 {[%clk 00:28:05]} {[%emt 00:00:32]} 36. Bd2 {[%clk 00:00:32]} {[%emt
00:00:30]} f4 {[%clk 00:27:40]} {[%emt 00:00:54]} 37. Ke1 {[%clk 00:00:37]}
{[%emt 00:00:25]} Rf5 {[%clk 00:27:47]} {[%emt 00:00:22]} 38. Kd1 {[%clk
00:00:38]} {[%emt 00:00:30]} Rxe5 {[%clk 00:27:53]} {[%emt 00:00:24]} 39. Bxf4
{[%clk 00:00:35]} {[%emt 00:00:33]} gxf4 {[%clk 00:28:14]} {[%emt 00:00:09]} 40.
Rg7 {[%clk 00:00:33]} {[%emt 00:00:32]} Bg5 {[%clk 00:27:41]} {[%emt 00:01:03]}
41. Rf1 {[%clk 00:30:03]} {[%emt 00:00:59]} f3 {[%clk 00:57:14]} {[%emt
00:00:57]} 42. Rh7+ {[%clk 00:29:38]} {[%emt 00:00:55]} Bh6 {[%clk 00:57:40]}
{[%emt 00:00:04]} 0-1

[Event "NJSK 2021 Jeugd B"]
[Site "Almelo, Netherlands"]
[Date "2021.08.02"]
[Round "2.2"]
[White "Slagboom, Leandro"]
[Black "Yeh, Timo"]
[Result "1-0"]
[TimeControl "90min/40moves + 30min + 30sec/move"]
[WhiteElo "1996"]
[BlackElo "1819"]

1. d4 {[%clk 01:30:57]} {[%emt 00:00:03]} d5 {[%clk 01:30:55]} {[%emt
00:00:04]} 2. c4 {[%clk 01:31:23]} {[%emt 00:00:05]} e6 {[%clk 01:31:22]}
{[%emt 00:00:04]} 3. Nf3 {[%clk 01:31:47]} {[%emt 00:00:05]} Nf6 {[%clk
01:31:48]} {[%emt 00:00:04]} 4. g3 {[%clk 01:32:11]} {[%emt 00:00:06]} dxc4
{[%clk 01:32:10]} {[%emt 00:00:08]} 5. Bg2 {[%clk 01:32:27]} {[%emt 00:00:14]}
Bd7 {[%clk 01:32:35]} {[%emt 00:00:05]} 6. Ne5 {[%clk 01:32:10]} {[%emt
00:00:48]} Bc6 {[%clk 01:32:58]} {[%emt 00:00:06]} 7. Nxc6 {[%clk 01:32:29]}
{[%emt 00:00:11]} Nxc6 {[%clk 01:33:23]} {[%emt 00:00:06]} 8. O-O {[%clk
01:32:02]} {[%emt 00:00:56]} Qd7 {[%clk 01:33:20]} {[%emt 00:00:33]} 9. e3
{[%clk 01:32:13]} {[%emt 00:00:19]} Nd5 {[%clk 01:31:47]} {[%emt 00:02:03]} 10.
Nd2 {[%clk 01:25:59]} {[%emt 00:06:44]} Nb6 {[%clk 01:29:24]} {[%emt 00:02:53]}
11. Qe2 {[%clk 01:22:52]} {[%emt 00:03:37]} Na5 {[%clk 01:25:39]} {[%emt
00:04:15]} 12. b3 {[%clk 01:08:42]} {[%emt 00:14:40]} cxb3 {[%clk 01:22:08]}
{[%emt 00:04:01]} 13. axb3 {[%clk 01:05:27]} {[%emt 00:03:46]} Bb4 {[%clk
01:19:44]} {[%emt 00:02:53]} 14. Ba3 {[%clk 00:45:41]} {[%emt 00:20:17]} Bxd2
{[%clk 00:45:27]} {[%emt 00:34:47]} 15. Qxd2 {[%clk 00:46:03]} {[%emt
00:00:07]} Nxb3 {[%clk 00:45:41]} {[%emt 00:00:16]} 16. Qc3 {[%clk 00:41:34]}
{[%emt 00:04:59]} Nxa1 {[%clk 00:42:54]} {[%emt 00:03:18]} 17. Bxb7 {[%clk
00:37:34]} {[%emt 00:04:29]} c5 {[%clk 00:41:39]} {[%emt 00:01:46]} 18. Bxa8
{[%clk 00:33:16]} {[%emt 00:04:47]} Nxa8 {[%clk 00:41:33]} {[%emt 00:00:36]} 19.
dxc5 {[%clk 00:26:29]} {[%emt 00:07:16]} f6 {[%clk 00:37:10]} {[%emt 00:04:53]}
20. Qxa1 {[%clk 00:15:48]} {[%emt 00:11:12]} Kf7 {[%clk 00:36:48]} {[%emt
00:00:52]} 21. Rd1 {[%clk 00:15:47]} {[%emt 00:00:31]} Qc7 {[%clk 00:36:26]}
{[%emt 00:00:51]} 22. Qd4 {[%clk 00:15:50]} {[%emt 00:00:28]} Re8 {[%clk
00:34:52]} {[%emt 00:02:04]} 23. Qe4 {[%clk 00:12:12]} {[%emt 00:04:08]} h6
{[%clk 00:22:30]} {[%emt 00:12:52]} 24. Rd6 {[%clk 00:11:12]} {[%emt 00:01:29]}
Qc8 {[%clk 00:21:31]} {[%emt 00:01:31]} 25. Qd3 {[%clk 00:09:21]} {[%emt
00:02:21]} Nc7 {[%clk 00:17:01]} {[%emt 00:04:59]} 26. Rd7+ {[%clk 00:07:34]}
{[%emt 00:02:17]} Kg8 {[%clk 00:17:10]} {[%emt 00:00:21]} 27. c6 {[%clk
00:07:32]} {[%emt 00:00:32]} e5 {[%clk 00:17:09]} {[%emt 00:00:30]} 28. Qg6
{[%clk 00:05:02]} {[%emt 00:03:00]} Ne6 {[%clk 00:17:38]} {[%emt 00:00:02]} 29.
Qf7+ {[%clk 00:04:16]} {[%emt 00:01:16]} Kh8 {[%clk 00:18:07]} 30. Be7 {[%clk
00:03:30]} {[%emt 00:01:16]} Ng5 {[%clk 00:15:38]} {[%emt 00:03:00]} 31. Qxe8+
{[%clk 00:02:34]} {[%emt 00:01:25]} Qxe8 {[%clk 00:16:03]} {[%emt 00:00:06]} 32.
Rd8 {[%clk 00:02:59]} {[%emt 00:00:05]} Qxd8 {[%clk 00:15:49]} {[%emt
00:00:43]} 33. Bxd8 {[%clk 00:03:27]} {[%emt 00:00:02]} 1-0

[Event "NJSK 2021 Jeugd B"]
[Site "Almelo, Netherlands"]
[Date "2021.08.02"]
[Round "2.3"]
[White "Shadrin, Mitia"]
[Black "Boghossian, Wahe"]
[Result "0-1"]
[TimeControl "90min/40moves + 30min + 30sec/move"]
[WhiteElo "1698"]
[BlackElo "1915"]

1. e4 {[%clk 01:30:57]} {[%emt 00:00:03]} c5 {[%clk 01:30:55]} {[%emt
00:00:05]} 2. Nf3 {[%clk 01:31:24]} {[%emt 00:00:04]} d6 {[%clk 01:31:07]}
{[%emt 00:00:17]} 3. d4 {[%clk 01:31:49]} {[%emt 00:00:05]} cxd4 {[%clk
01:31:32]} {[%emt 00:00:05]} 4. Qxd4 {[%clk 01:31:10]} {[%emt 00:00:04]} Bd7
{[%clk 01:31:55]} {[%emt 00:01:11]} 5. Be3 {[%clk 01:25:28]} {[%emt 00:06:12]}
Nc6 {[%clk 01:31:31]} {[%emt 00:00:55]} 6. Qd2 {[%clk 01:25:21]} {[%emt
00:00:35]} Nf6 {[%clk 01:31:04]} {[%emt 00:00:59]} 7. Nc3 {[%clk 01:25:12]}
{[%emt 00:00:39]} Ng4 {[%clk 01:22:20]} {[%emt 00:09:14]} 8. Bf4 {[%clk
01:25:05]} {[%emt 00:00:31]} g6 {[%clk 01:10:13]} {[%emt 00:12:43]} 9. h3
{[%clk 01:22:46]} {[%emt 00:02:49]} Nf6 {[%clk 01:09:34]} {[%emt 00:01:08]} 10.
Bh6 {[%clk 01:17:36]} {[%emt 00:05:39]} Bxh6 {[%clk 01:06:06]} {[%emt
00:04:00]} 11. Qxh6 {[%clk 01:17:55]} {[%emt 00:00:08]} Qb6 {[%clk 01:05:04]}
{[%emt 00:01:33]} 12. O-O-O {[%clk 01:12:06]} {[%emt 00:06:21]} Rc8 {[%clk
00:42:16]} {[%emt 00:23:18]} 13. a3 {[%clk 00:53:33]} {[%emt 00:19:02]} Qxf2
{[%clk 00:23:29]} {[%emt 00:19:17]} 14. Bb5 {[%clk 00:41:53]} {[%emt 00:12:07]}
Qc5 {[%clk 00:16:44]} {[%emt 00:07:15]} 15. Bxc6 {[%clk 00:24:49]} {[%emt
00:17:37]} Bxc6 {[%clk 00:14:12]} {[%emt 00:03:03]} 16. Rhe1 {[%clk 00:21:29]}
{[%emt 00:03:47]} Qh5 {[%clk 00:11:05]} {[%emt 00:03:32]} 17. Qf4 {[%clk
00:19:50]} {[%emt 00:02:12]} O-O {[%clk 00:09:30]} {[%emt 00:02:09]} 18. e5
{[%clk 00:17:07]} {[%emt 00:03:14]} Bxf3 {[%clk 00:07:54]} {[%emt 00:02:06]} 19.
gxf3 {[%clk 00:16:40]} {[%emt 00:00:57]} dxe5 {[%clk 00:05:19]} {[%emt
00:03:05]} 20. Rxe5 {[%clk 00:16:55]} {[%emt 00:00:14]} Qxh3 {[%clk 00:02:04]}
{[%emt 00:03:44]} 21. Rxe7 {[%clk 00:17:07]} {[%emt 00:00:17]} Rc6 {[%clk
00:01:05]} {[%emt 00:01:31]} 22. Rxb7 {[%clk 00:14:34]} {[%emt 00:03:05]} a6
{[%clk 00:01:10]} {[%emt 00:00:24]} 23. Kb1 {[%clk 00:13:56]} {[%emt 00:01:06]}
Qc8 {[%clk 00:01:02]} {[%emt 00:00:39]} 24. Re7 {[%clk 00:12:32]} {[%emt
00:01:55]} Rb6 {[%clk 00:00:34]} {[%emt 00:00:59]} 25. Nd5 {[%clk 00:09:59]}
{[%emt 00:03:00]} Nxd5 {[%clk 00:00:41]} {[%emt 00:00:26]} 26. Rxd5 {[%clk
00:10:19]} {[%emt 00:00:10]} Qc3 {[%clk 00:00:50]} {[%emt 00:00:21]} 27. Qc1
{[%clk 00:09:21]} {[%emt 00:01:26]} Rfb8 {[%clk 00:00:49]} {[%emt 00:00:33]} 28.
Ka1 {[%clk 00:07:47]} {[%emt 00:02:04]} Rxb2 {[%clk 00:01:06]} {[%emt
00:00:12]} 29. Rd3 {[%clk 00:06:53]} {[%emt 00:01:25]} Rb1+ {[%clk 00:01:12]}
{[%emt 00:00:24]} 30. Ka2 {[%clk 00:07:15]} {[%emt 00:00:09]} Qa1# {[%clk
00:01:37]} {[%emt 00:00:05]} 0-1

[Event "NJSK 2021 Jeugd B"]
[Site "Almelo, Netherlands"]
[Date "2021.08.02"]
[Round "2.4"]
[White "Aarts, Joaquin"]
[Black "Van Kuijk, Vadim"]
[Result "0-1"]
[TimeControl "90min/40moves + 30min + 30sec/move"]
[WhiteElo "1736"]
[BlackElo "1722"]

1. d4 {[%clk 01:30:55]} {[%emt 00:00:04]} f5 {[%clk 01:30:50]} {[%emt
00:00:10]} 2. g3 {[%clk 01:31:17]} {[%emt 00:00:09]} e6 {[%clk 01:31:13]}
{[%emt 00:00:06]} 3. Bg2 {[%clk 01:31:40]} {[%emt 00:00:08]} Nf6 {[%clk
01:31:36]} {[%emt 00:00:06]} 4. c4 {[%clk 01:31:03]} {[%emt 00:01:08]} Be7
{[%clk 01:31:59]} {[%emt 00:00:06]} 5. Nc3 {[%clk 01:31:15]} {[%emt 00:00:20]}
O-O {[%clk 01:31:55]} {[%emt 00:00:32]} 6. e3 {[%clk 01:30:27]} {[%emt
00:01:18]} d6 {[%clk 01:29:59]} {[%emt 00:02:26]} 7. Nf3 {[%clk 01:28:21]}
{[%emt 00:02:38]} Nbd7 {[%clk 01:18:35]} {[%emt 00:11:53]} 8. d5 {[%clk
01:12:41]} {[%emt 00:16:10]} e5 {[%clk 01:18:24]} {[%emt 00:00:40]} 9. e4
{[%clk 01:12:24]} {[%emt 00:00:47]} Nc5 {[%clk 00:58:55]} {[%emt 00:19:59]} 10.
exf5 {[%clk 01:07:27]} {[%emt 00:05:27]} Bxf5 {[%clk 00:56:56]} {[%emt
00:02:29]} 11. Nh4 {[%clk 01:07:21]} {[%emt 00:00:37]} Nd3+ {[%clk 00:23:34]}
{[%emt 00:33:51]} 12. Kf1 {[%clk 01:05:04]} {[%emt 00:02:47]} Qd7 {[%clk
00:22:52]} {[%emt 00:01:13]} 13. h3 {[%clk 00:21:19]} {[%emt 00:44:15]} Nc5
{[%clk 00:12:31]} {[%emt 00:10:51]} 14. Be3 {[%clk 00:17:34]} {[%emt 00:04:14]}
Bd3+ {[%clk 00:08:32]} {[%emt 00:04:30]} 15. Kg1 {[%clk 00:17:35]} {[%emt
00:00:29]} Bxc4 {[%clk 00:07:33]} {[%emt 00:01:29]} 16. b3 {[%clk 00:16:21]}
{[%emt 00:01:44]} Ba6 {[%clk 00:06:59]} {[%emt 00:01:04]} 17. b4 {[%clk
00:15:20]} {[%emt 00:01:31]} Nd3 {[%clk 00:06:56]} {[%emt 00:00:32]} 18. Rb1
{[%clk 00:15:34]} {[%emt 00:00:16]} Bc4 {[%clk 00:06:41]} {[%emt 00:00:45]} 19.
Bf1 {[%clk 00:07:26]} {[%emt 00:08:39]} e4 {[%clk 00:07:02]} {[%emt 00:00:09]}
20. Nxe4 {[%clk 00:05:41]} {[%emt 00:02:14]} Nxe4 {[%clk 00:06:51]} {[%emt
00:00:40]} 21. Bxd3 {[%clk 00:05:48]} {[%emt 00:00:24]} Nc3 {[%clk 00:06:26]}
{[%emt 00:00:56]} 22. Bxh7+ {[%clk 00:05:16]} {[%emt 00:01:01]} Kxh7 {[%clk
00:06:29]} {[%emt 00:00:27]} 23. Qc2+ {[%clk 00:04:52]} {[%emt 00:00:55]} Kg8
{[%clk 00:06:48]} {[%emt 00:00:11]} 24. Qxc3 {[%clk 00:05:07]} {[%emt
00:00:15]} Bxd5 {[%clk 00:06:57]} {[%emt 00:00:20]} 25. Rh2 {[%clk 00:04:54]}
{[%emt 00:00:44]} Bxh4 {[%clk 00:05:25]} {[%emt 00:02:01]} 26. gxh4 {[%clk
00:04:13]} {[%emt 00:01:11]} Rf3 {[%clk 00:04:00]} {[%emt 00:01:56]} 27. Qd4
{[%clk 00:03:28]} {[%emt 00:01:15]} c6 {[%clk 00:02:09]} {[%emt 00:02:21]} 28.
Qg4 {[%clk 00:03:26]} {[%emt 00:00:31]} Qf7 {[%clk 00:02:13]} {[%emt 00:00:26]}
29. Rd1 {[%clk 00:01:49]} {[%emt 00:02:07]} Rf8 {[%clk 00:01:47]} {[%emt
00:00:56]} 30. a3 {[%clk 00:02:00]} {[%emt 00:00:20]} Bb3 {[%clk 00:01:28]}
{[%emt 00:00:49]} 31. Re1 {[%clk 00:01:29]} {[%emt 00:01:01]} Be6 {[%clk
00:01:51]} {[%emt 00:00:06]} 32. Qg2 {[%clk 00:01:51]} {[%emt 00:00:08]} Qd7
{[%clk 00:01:31]} {[%emt 00:00:50]} 33. Bh6 {[%clk 00:01:18]} {[%emt 00:01:04]}
Bxh3 {[%clk 00:01:29]} {[%emt 00:00:31]} 34. Qg5 {[%clk 00:01:09]} {[%emt
00:00:38]} R8f5 {[%clk 00:00:38]} {[%emt 00:01:22]} 35. Qg6 {[%clk 00:01:10]}
{[%emt 00:00:29]} Re5 {[%clk 00:00:46]} {[%emt 00:00:22]} 36. Rd1 {[%clk
00:00:49]} {[%emt 00:00:51]} Re6 {[%clk 00:00:43]} {[%emt 00:00:34]} 37. Qh5
{[%clk 00:01:07]} {[%emt 00:00:12]} Qe7 {[%clk 00:00:41]} {[%emt 00:00:32]} 38.
Be3 {[%clk 00:00:58]} {[%emt 00:00:38]} Rexe3 {[%clk 00:00:34]} {[%emt
00:00:37]} 39. fxe3 {[%clk 00:01:02]} {[%emt 00:00:26]} Rg3+ {[%clk 00:01:01]}
{[%emt 00:00:04]} 40. Kh1 {[%clk 00:00:46]} {[%emt 00:00:46]} Qe4+ {[%emt
00:00:05]} 41. Rg2 {[%clk 00:01:11]} {[%emt 00:00:03]} Qxg2# {[%clk 00:01:49]}
{[%emt 00:00:08]} 0-1

[Event "NJSK 2021 Jeugd B"]
[Site "Almelo, Netherlands"]
[Date "2021.08.02"]
[Round "2.5"]
[White "Kien, Clovis"]
[Black "Wierenga, Jael"]
[Result "1-0"]
[TimeControl "90min/40moves + 30min + 30sec/move"]
[WhiteElo "1683"]
[BlackElo "1565"]

1. d4 {[%clk 01:30:57]} {[%emt 00:00:03]} Nf6 {[%clk 01:30:53]} {[%emt
00:00:07]} 2. c4 {[%clk 01:31:23]} {[%emt 00:00:04]} e6 {[%clk 01:31:19]}
{[%emt 00:00:03]} 3. Nf3 {[%clk 01:31:50]} {[%emt 00:00:04]} d5 {[%clk
01:31:44]} {[%emt 00:00:06]} 4. e3 {[%clk 01:31:07]} {[%emt 00:01:12]} Be7
{[%clk 01:31:51]} {[%emt 00:00:24]} 5. Nc3 {[%clk 01:30:45]} {[%emt 00:00:52]}
O-O {[%clk 01:32:10]} {[%emt 00:00:10]} 6. Be2 {[%clk 01:29:17]} {[%emt
00:01:58]} a6 {[%clk 01:31:31]} {[%emt 00:01:09]} 7. O-O {[%clk 01:28:39]}
{[%emt 00:01:08]} Nbd7 {[%clk 01:31:13]} {[%emt 00:00:47]} 8. Ne5 {[%clk
01:26:49]} {[%emt 00:02:20]} c6 {[%clk 01:25:40]} {[%emt 00:06:03]} 9. Qc2
{[%clk 01:19:36]} {[%emt 00:07:44]} Qc7 {[%clk 01:16:09]} {[%emt 00:10:01]} 10.
f4 {[%clk 01:17:38]} {[%emt 00:02:28]} dxc4 {[%clk 01:12:04]} {[%emt 00:04:35]}
11. Bxc4 {[%clk 01:12:22]} {[%emt 00:05:46]} b5 {[%clk 01:10:02]} {[%emt
00:02:31]} 12. Bd3 {[%clk 01:11:06]} {[%emt 00:01:43]} Bb7 {[%clk 01:05:33]}
{[%emt 00:05:03]} 13. Ne4 {[%clk 01:07:58]} {[%emt 00:03:39]} h6 {[%clk
00:48:56]} {[%emt 00:17:07]} 14. Ng3 {[%clk 00:56:54]} {[%emt 00:11:33]} c5
{[%clk 00:45:02]} {[%emt 00:04:24]} 15. b3 {[%clk 00:42:33]} {[%emt 00:14:50]}
Rac8 {[%clk 00:42:18]} {[%emt 00:03:14]} 16. Qe2 {[%clk 00:42:45]} {[%emt
00:00:18]} Rfd8 {[%clk 00:36:52]} {[%emt 00:05:56]} 17. Bb2 {[%clk 00:41:39]}
{[%emt 00:01:37]} Qb6 {[%clk 00:35:06]} {[%emt 00:02:17]} 18. f5 {[%clk
00:30:16]} {[%emt 00:11:52]} Nxe5 {[%clk 00:25:42]} {[%emt 00:09:54]} 19. dxe5
{[%clk 00:30:26]} {[%emt 00:00:20]} Nd5 {[%clk 00:17:18]} {[%emt 00:08:54]} 20.
f6 {[%clk 00:21:43]} {[%emt 00:09:13]} Bf8 {[%clk 00:17:46]} {[%emt 00:00:01]}
21. fxg7 {[%clk 00:19:07]} {[%emt 00:03:06]} Bxg7 {[%clk 00:17:53]} {[%emt
00:00:23]} 22. Nh5 {[%clk 00:18:46]} {[%emt 00:00:51]} c4 {[%clk 00:17:42]}
{[%emt 00:00:42]} 23. Bd4 {[%clk 00:18:26]} {[%emt 00:00:50]} Qc7 {[%clk
00:06:24]} {[%emt 00:11:48]} 24. Qg4 {[%clk 00:18:38]} {[%emt 00:00:17]} Kf8
{[%clk 00:06:01]} {[%emt 00:00:54]} 25. Qxg7+ {[%clk 00:18:27]} {[%emt
00:00:40]} Ke8 {[%clk 00:06:25]} {[%emt 00:00:06]} 26. Qg8+ {[%clk 00:17:07]}
{[%emt 00:01:49]} Kd7 {[%clk 00:06:47]} {[%emt 00:00:09]} 27. Qxf7+ {[%clk
00:17:26]} {[%emt 00:00:10]} Ne7 {[%clk 00:07:13]} {[%emt 00:00:05]} 28. Nf6+
{[%clk 00:17:46]} {[%emt 00:00:11]} Kc6 {[%clk 00:06:21]} {[%emt 00:01:22]} 29.
Qxe6+ {[%clk 00:18:09]} {[%emt 00:00:06]} 1-0